bitfinex/quotes_BTCUSD_20220304
["timestamp","ask_amount","ask_price","bid_price","bid_amount"]
[1646429706874,0.0103,39296.0,39293.0,0.0467]
[1646429707075,0.02495212,39296.0,39293.0,0.0467]
[1646429707953,0.0103,39296.0,39294.0,0.3]
[1646429708146,0.0103,39296.0,39295.0,0.0467]
[1646429708344,0.0103,39296.0,39295.0,0.3467]
[1646429708537,0.0103,39296.0,39295.0,0.48222831]
[1646429709756,0.0103,39296.0,39295.0,0.63222831]
[1646429710340,0.0103,39300.0,39295.0,0.63222831]
[1646429710538,0.0103,39300.0,39297.0,0.063643]
[1646429710739,0.0103,39300.0,39298.0,0.0467]
[1646429710943,0.0103,39300.0,39298.0,0.0367]
[1646429711153,0.25053812,39300.0,39298.0,0.0367]
[1646429711370,0.0103,39300.0,39298.0,0.0367]
[1646429711578,0.01222152,39299.0,39298.0,0.0367]
[1646429711977,0.0103,39300.0,39298.0,0.0367]
[1646429712195,0.02152747,39300.0,39298.0,0.0367]
[1646429712601,0.0103,39300.0,39298.0,0.0367]
[1646429712781,0.02569494,39300.0,39298.0,0.0367]
[1646429713075,0.0103,39300.0,39298.0,0.0367]
[1646429713289,0.01002386,39299.0,39298.0,0.0367]
[1646429713675,0.01012187,39299.0,39298.0,0.0367]
[1646429713877,0.0103,39299.0,39298.0,0.0367]
[1646429715532,0.27688068,39299.0,39298.0,0.0367]
[1646429715934,0.25162068,39299.0,39298.0,0.0367]
[1646429716147,0.0734,39297.0,39295.0,8.101e-05]
[1646429716833,0.0103,39296.0,39295.0,8.101e-05]
[1646429717031,0.0103,39296.0,39295.0,0.0467]
[1646429717232,0.40611666,39301.0,39300.0,0.4163]
[1646429717433,0.38085666,39301.0,39300.0,0.4163]
[1646429718051,0.14569499,39301.0,39300.0,0.4163]
[1646429719067,0.02526,39308.0,39300.0,0.4163]
[1646429719277,0.02526,39307.0,39301.0,0.24014924]
[1646429719574,0.14569499,39303.0,39300.0,0.4163]
[1646429719768,0.14569499,39303.0,39300.0,0.41639112]
[1646429720568,0.42539994,39303.0,39300.0,0.41639112]
[1646429720840,0.42539994,39303.0,39300.0,0.4163]
[1646429721369,0.14569499,39303.0,39300.0,0.4163]
[1646429723030,0.14569499,39303.0,39301.0,0.0467]
[1646429723721,0.40948849,39302.0,39301.0,0.0467]
[1646429725628,0.2898319,39301.0,39300.0,0.4163]
[1646429725824,0.4298319,39301.0,39300.0,0.4163]
[1646429726024,0.57552689,39301.0,39300.0,0.4163]
[1646429726971,0.21296238,39295.0,39293.0,0.05]
[1646429727166,0.14,39294.0,39292.0,0.1]
[1646429727364,0.14,39293.0,39291.0,0.210355]
[1646429727565,0.14,39292.0,39291.0,0.210355]
[1646429727965,0.14,39292.0,39291.0,0.66437701]
[1646429728172,0.14,39292.0,39291.0,0.82803301]
[1646429729279,0.14,39292.0,39291.0,0.67755018]
[1646429731032,0.14,39292.0,39291.0,0.61389518]
[1646429731220,0.14,39292.0,39291.0,0.310356]
[1646429732335,0.14,39292.0,39291.0,0.60033004]
[1646429734280,0.14,39292.0,39291.0,0.8838113]
[1646429734477,0.14,39292.0,39291.0,0.8939843]
[1646429734679,0.14,39292.0,39291.0,0.61050304]
[1646429734963,0.14,39292.0,39291.0,0.60033004]
[1646429735378,0.14,39292.0,39291.0,0.90033004]
[1646429736189,0.01403937,39305.0,39297.0,0.05634374]
[1646429736397,0.14569499,39308.0,39292.0,1.42526]
[1646429736398,0.14013486,39308.0,39299.0,0.063643]
[1646429736680,0.7058,39312.0,39304.0,0.1750974]
[1646429736681,0.48953449,39312.0,39304.0,0.1750974]
[1646429736883,0.01243449,39312.0,39305.0,0.0467]
[1646429737107,0.11280379,39308.0,39305.0,0.0467]
[1646429737281,0.07456185,39306.0,39305.0,0.0467]
[1646429737481,0.3078258,39308.0,39305.0,0.0467]
[1646429737482,0.44796066,39308.0,39305.0,0.0467]
[1646429737731,0.07455995,39306.0,39305.0,0.0467]
[1646429737931,0.14013486,39308.0,39305.0,0.17736978]
[1646429738341,0.14013486,39308.0,39305.0,0.0467]
[1646429738734,0.14013486,39308.0,39305.0,0.046]
[1646429738933,0.25760351,39306.0,39305.0,0.046]
[1646429739347,0.25760351,39306.0,39305.0,0.041]
[1646429739348,0.27077881,39306.0,39305.0,0.041]
[1646429739534,0.08199999,39304.0,39303.0,8.655e-05]
[1646429739735,0.08199999,39304.0,39303.0,0.04678655]
[1646429739934,0.08199999,39304.0,39303.0,0.0467]
[1646429743885,0.08199999,39304.0,39303.0,0.3467]
[1646429744799,0.08199999,39304.0,39303.0,0.0467]
[1646429745832,0.08199999,39304.0,39303.0,0.3467]
[1646429746834,0.08199999,39304.0,39303.0,0.0467]
[1646429748183,0.45926032,39304.0,39303.0,0.0467]
[1646429748349,0.73600242,39304.0,39303.0,0.0467]
[1646429748547,0.73600242,39304.0,39297.0,0.0507]
[1646429748738,0.59600242,39304.0,39300.0,9.043e-05]
[1646429749168,0.31926032,39304.0,39300.0,9.043e-05]
[1646429749580,0.31926032,39304.0,39297.0,0.0507]
[1646429749768,0.31926032,39304.0,39297.0,0.1467]
[1646429749971,0.31926032,39304.0,39298.0,9.043e-05]
[1646429750197,0.26926032,39304.0,39299.0,0.0467]
[1646429751474,0.28824185,39302.0,39298.0,9.043e-05]
[1646429751670,0.26926032,39304.0,39298.0,9.043e-05]
[1646429752069,0.26926032,39304.0,39298.0,0.0467]
[1646429752272,0.29452032,39304.0,39298.0,0.0467]
[1646429752557,0.29452032,39304.0,39297.0,8.656e-05]
[1646429752558,0.02526,39302.0,39297.0,8.656e-05]
[1646429752719,0.14013486,39299.0,39297.0,8.656e-05]
[1646429753331,0.31911832,39298.0,39292.0,0.004]
[1646429753526,0.31911832,39298.0,39294.0,8.657e-05]
[1646429753725,0.14013486,39297.0,39294.0,8.657e-05]
[1646429754541,0.14013486,39297.0,39293.0,0.063655]
[1646429755320,0.14013486,39297.0,39292.0,0.06374257]
[1646429755523,0.14013486,39297.0,39292.0,0.063656]
[1646429756022,0.20631284,39301.0,39292.0,0.063656]
[1646429756236,0.20631284,39303.0,39293.0,0.3]
[1646429756479,0.03199999,39304.0,39295.0,0.07631734]
[1646429756674,0.03199999,39304.0,39296.0,0.3467]
[1646429756938,0.03199999,39304.0,39295.0,0.27651719]
[1646429757074,0.03199999,39304.0,39297.0,0.12098723]
[1646429757683,0.03199999,39304.0,39298.0,0.0467]
[1646429757875,0.03199999,39304.0,39299.0,0.063641]
[1646429758072,0.03199999,39304.0,39300.0,0.0467]
[1646429759875,0.50908933,39302.0,39300.0,0.0467]
[1646429760240,0.24154072,39302.0,39300.0,0.0467]
[1646429760746,0.24154072,39302.0,39297.0,8.656e-05]
[1646429760747,0.26680072,39302.0,39297.0,8.656e-05]
[1646429760928,0.14013486,39298.0,39297.0,8.656e-05]
[1646429761337,0.13991686,39298.0,39297.0,8.656e-05]
[1646429761741,0.51482339,39293.0,39288.0,0.13739451]
[1646429761931,0.2553871,39293.0,39288.0,0.13739451]
[1646429762127,0.2553871,39293.0,39289.0,0.063661]
[1646429762926,0.22958744,39293.0,39289.0,0.063661]
[1646429764068,0.25155067,39295.0,39289.0,0.063661]
[1646429764771,0.25155067,39295.0,39290.0,0.063652]
[1646429764968,0.25155067,39295.0,39290.0,0.190958]
[1646429765271,0.25155067,39295.0,39290.0,0.290958]
[1646429765485,0.26613539,39293.0,39290.0,0.290958]
[1646429765682,0.25155067,39295.0,39291.0,0.063652]
[1646429765870,0.13991686,39298.0,39291.0,0.063652]
[1646429766070,0.43251284,39301.0,39291.0,0.110352]
[1646429766071,0.2262,39301.0,39291.0,0.110352]
[1646429766279,0.36611686,39301.0,39292.0,0.063651]
[1646429766480,0.36611686,39301.0,39292.0,0.110351]
[1646429766671,0.27593544,39300.0,39292.0,0.110351]
[1646429766869,0.29189316,39299.0,39292.0,0.11044686]
[1646429767073,0.43181002,39299.0,39295.0,0.06365]
[1646429767269,0.13991686,39299.0,39295.0,0.06365]
[1646429767475,0.20631284,39303.0,39295.0,0.06365]
[1646429767722,0.13991686,39301.0,39295.0,0.06365]
[1646429767924,0.20631284,39303.0,39295.0,0.22212236]
[1646429768144,0.13991686,39301.0,39295.0,0.22212236]
[1646429768536,0.23831283,39304.0,39298.0,0.33782811]
[1646429769327,0.03199999,39304.0,39298.0,0.33782811]
[1646429769634,0.03199999,39304.0,39298.0,0.063645]
[1646429769635,0.17191685,39304.0,39298.0,0.063645]
[1646429770534,0.03199999,39304.0,39298.0,0.22570011]
[1646429770724,0.17191685,39304.0,39298.0,0.22570011]
[1646429770927,0.03199999,39304.0,39298.0,0.32570011]
[1646429771327,0.03199999,39304.0,39299.0,0.0467]
[1646429772181,0.03199999,39304.0,39303.0,0.23839892]
[1646429772576,0.03199999,39304.0,39303.0,1.00168892]
[1646429773582,0.03199999,39304.0,39303.0,1.04838892]
[1646429775230,0.03199999,39304.0,39303.0,0.80999]
[1646429782740,0.03199999,39304.0,39303.0,0.80989072]
[1646429785129,0.09567479,39304.0,39303.0,0.80989072]
[1646429785428,0.09567479,39304.0,39303.0,0.87352972]
[1646429785726,0.09567479,39304.0,39303.0,0.80989072]
[1646429786965,0.09567479,39304.0,39303.0,0.25354557]
[1646429787771,0.09567479,39304.0,39303.0,0.20684557]
[1646429787974,0.23559165,39304.0,39303.0,0.20684557]
[1646429788371,0.41369113,39302.0,39300.0,9.043e-05]
[1646429788669,0.45355048,39301.0,39300.0,9.043e-05]
[1646429789276,0.45355048,39301.0,39297.0,0.103]
[1646429789475,0.31355048,39301.0,39297.0,0.00309044]
[1646429789769,0.31355048,39301.0,39297.0,9.044e-05]
[1646429790428,0.45346734,39301.0,39294.0,0.1]
[1646429790628,0.24907197,39298.0,39293.0,0.003]
[1646429790827,0.68504018,39301.0,39295.0,8.656e-05]
[1646429791027,0.14,39297.0,39295.0,8.656e-05]
[1646429791230,0.14,39296.0,39295.0,8.656e-05]
[1646429791630,0.14,39296.0,39288.0,0.127311]
[1646429791927,0.58735222,39291.0,39288.0,0.127311]
[1646429792141,0.29953569,39291.0,39290.0,0.063657]
[1646429792930,0.13991686,39296.0,39290.0,0.063657]
[1646429793131,0.20631284,39300.0,39292.0,0.127294]
[1646429793336,0.20631284,39300.0,39293.0,0.3467]
[1646429793630,0.2456,39301.0,39294.0,0.01456951]
[1646429793827,0.65892539,39302.0,39294.0,0.1]
[1646429794074,0.26390909,39296.0,39294.0,0.1]
[1646429794284,0.26390909,39296.0,39294.0,9.585e-05]
[1646429795076,0.2641649,39295.0,39294.0,9.585e-05]
[1646429795354,0.18079059,39295.0,39291.0,0.004]
[1646429795478,0.16517686,39292.0,39291.0,0.004]
[1646429795673,0.16517686,39292.0,39291.0,0.00409586]
[1646429795874,0.16517686,39292.0,39291.0,9.586e-05]
[1646429795875,0.30517686,39292.0,39291.0,9.586e-05]
[1646429796074,0.16517686,39292.0,39291.0,9.586e-05]
[1646429796415,0.13991686,39292.0,39285.0,0.12740675]
[1646429796574,0.50540909,39296.0,39288.0,0.24509461]
[1646429796797,0.13991686,39293.0,39288.0,0.24519048]
[1646429797574,0.13991686,39293.0,39288.0,0.29509461]
[1646429798224,0.02526,39299.0,39294.0,0.25223411]
[1646429798428,0.13991686,39295.0,39294.0,0.25223411]
[1646429798624,0.02526,39299.0,39294.0,0.30223411]
[1646429798834,0.13991686,39295.0,39294.0,0.30223411]
[1646429799228,0.01091799,39300.0,39294.0,0.30223411]
[1646429799427,0.13991686,39298.0,39294.0,0.30223411]
[1646429800229,0.13991686,39298.0,39294.0,0.05]
[1646429800427,0.13991686,39296.0,39292.0,0.05008569]
[1646429800630,0.13991686,39296.0,39292.0,8.569e-05]
[1646429801237,0.31899063,39294.0,39287.0,0.15]
[1646429801494,0.31899063,39294.0,39290.0,0.06375056]
[1646429801930,0.13991686,39294.0,39290.0,0.06375056]
[1646429802187,0.06370563,39291.0,39290.0,0.06375056]
[1646429802387,0.06370563,39291.0,39290.0,0.06366]
[1646429802688,0.06370482,39291.0,39290.0,0.06366]
[1646429802901,0.06370482,39291.0,39289.0,0.1]
[1646429803093,0.37912755,39297.0,39290.0,0.06429556]
[1646429803292,0.06370482,39293.0,39290.0,0.19160542]
[1646429803488,0.06370482,39291.0,39290.0,0.00063656]
[1646429803687,0.07714829,39291.0,39290.0,0.00063656]
[1646429804499,0.07714829,39291.0,39290.0,0.06429656]
[1646429805089,0.07714666,39291.0,39290.0,0.06429656]
[1646429805544,0.07714666,39291.0,39290.0,0.00063656]
[1646429807638,0.07714666,39291.0,39290.0,0.00037056]
[1646429808641,0.07714666,39291.0,39287.0,0.2264328]
[1646429808846,0.01344347,39291.0,39287.0,0.2264328]
[1646429809280,0.01344347,39291.0,39289.0,0.06366]
[1646429809711,0.01344347,39291.0,39290.0,0.1518075]
[1646429809879,0.01344347,39291.0,39290.0,0.47443783]
[1646429810086,0.07714261,39291.0,39290.0,0.32263033]
[1646429811086,0.07714261,39291.0,39290.0,0.60376918]
[1646429811282,0.07713287,39291.0,39290.0,1.36730918]
[1646429811480,0.07713287,39291.0,39290.0,1.3521139]
[1646429811684,0.07713287,39291.0,39290.0,0.96024]
[1646429812725,0.07713287,39291.0,39290.0,1.07605776]
[1646429812930,0.07713287,39291.0,39290.0,0.96024]
[1646429813725,0.07713287,39291.0,39290.0,1.26024]
[1646429814328,0.07713287,39291.0,39290.0,1.49417599]
[1646429814527,0.07713287,39291.0,39290.0,1.60746012]
[1646429814938,0.07713287,39291.0,39290.0,1.62195953]
[1646429815139,0.01344347,39291.0,39290.0,1.62195953]
[1646429815326,0.07713287,39291.0,39290.0,1.62195953]
[1646429815527,0.01344347,39291.0,39290.0,1.62195953]
[1646429815728,0.07713287,39291.0,39290.0,1.63213253]
[1646429815928,0.07713287,39291.0,39290.0,1.62195953]
[1646429816127,0.07713287,39291.0,39290.0,1.60746012]
[1646429816978,0.07713287,39291.0,39290.0,1.48417599]
[1646429817980,0.07713287,39291.0,39290.0,1.60276765]
[1646429818187,0.07713287,39291.0,39290.0,1.61764435]
[1646429819780,0.07713287,39291.0,39290.0,1.62781735]
[1646429820225,0.07713287,39291.0,39290.0,1.61764435]
[1646429820427,0.07713287,39291.0,39290.0,1.60276765]
[1646429822629,0.07713287,39291.0,39290.0,1.48417599]
[1646429823630,0.07713287,39291.0,39290.0,1.31373861]
[1646429824134,0.07713287,39291.0,39290.0,1.30356561]
[1646429826877,0.07713287,39291.0,39290.0,1.31373861]
[1646429827278,0.07713287,39291.0,39290.0,1.30356561]
[1646429827481,0.07713287,39291.0,39290.0,1.18417599]
[1646429827726,0.07713287,39291.0,39290.0,1.25024]
[1646429828549,0.07713287,39291.0,39290.0,1.39380594]
[1646429829327,0.07713287,39291.0,39290.0,1.64060199]
[1646429830530,0.01344347,39291.0,39290.0,1.66586199]
[1646429830734,0.01344347,39291.0,39290.0,1.69060199]
[1646429832379,0.051324,39293.0,39291.0,2.19866]
[1646429832577,0.41369113,39302.0,39291.0,2.19866]
[1646429832578,0.41369113,39302.0,39297.0,0.063638]
[1646429832777,0.41369113,39302.0,39298.0,1.1101]
[1646429832977,0.41369113,39302.0,39298.0,0.60371323]
[1646429833193,0.41369113,39302.0,39299.0,0.1]
[1646429833380,0.41369113,39302.0,39300.0,0.17863244]
[1646429833586,0.14,39301.0,39300.0,0.17863244]
[1646429833778,0.14,39302.0,39301.0,1.4]
[1646429834025,0.20631284,39313.0,39301.0,1.4467]
[1646429834185,0.0001759,39316.0,39302.0,1.22089285]
[1646429834375,0.14,39312.0,39303.0,1.00784314]
[1646429834593,0.0001759,39316.0,39303.0,1.00784314]
[1646429834594,0.14,39308.0,39305.0,0.79866]
[1646429834796,0.32106008,39317.0,39306.0,2.18055178]
[1646429834982,0.14,39313.0,39306.0,2.18055178]
[1646429835236,0.14,39309.0,39307.0,0.12722]
[1646429835428,0.00017647,39316.0,39308.0,0.96959]
[1646429835639,0.14,39312.0,39310.0,0.06361342]
[1646429835830,0.14,39311.0,39310.0,0.11361342]
[1646429836027,0.14,39311.0,39310.0,0.92676342]
[1646429836226,0.14,39311.0,39310.0,1.32676342]
[1646429836827,0.14,39311.0,39310.0,1.45399042]
[1646429837927,0.00017648,39316.0,39310.0,1.15399042]
[1646429838144,0.13243852,39312.0,39311.0,0.0467]
[1646429838389,0.13243852,39312.0,39311.0,0.90985]
[1646429838730,0.13243852,39312.0,39311.0,0.97347031]
[1646429839198,0.13243852,39312.0,39311.0,0.90985]
[1646429839480,0.13243852,39312.0,39311.0,0.80985]
[1646429840184,0.27235538,39312.0,39311.0,0.80985]
[1646429840682,0.27235538,39312.0,39311.0,0.90985]
[1646429841480,0.13243852,39312.0,39311.0,0.90985]
[1646429842183,0.13243852,39312.0,39311.0,0.89985]
[1646429843034,0.27235538,39312.0,39311.0,0.89985]
[1646429843865,0.27235538,39312.0,39311.0,0.96346968]
[1646429844037,0.27235538,39312.0,39311.0,0.89985]
[1646429846879,0.13243852,39312.0,39311.0,0.963471]
[1646429847126,0.13243852,39312.0,39311.0,1.09630606]
[1646429847277,0.13243852,39312.0,39311.0,0.963471]
[1646429848080,0.13243852,39312.0,39311.0,0.70936182]
[1646429848081,0.59761538,39312.0,39311.0,0.70936182]
[1646429848291,0.59761538,39312.0,39308.0,9.582e-05]
[1646429848292,0.02526,39310.0,39308.0,9.582e-05]
[1646429848480,0.46796279,39309.0,39308.0,9.582e-05]
[1646429848682,0.76796279,39309.0,39308.0,9.582e-05]
[1646429848880,0.62796279,39309.0,39308.0,9.582e-05]
[1646429849082,1.08902963,39309.0,39308.0,9.582e-05]
[1646429849287,1.08902963,39309.0,39306.0,0.004]
[1646429849484,0.16526,39307.0,39306.0,0.004]
[1646429849682,0.44183316,39307.0,39306.0,0.004]
[1646429849882,0.58175002,39307.0,39305.0,9.525e-05]
[1646429850081,0.16526,39306.0,39305.0,9.525e-05]
[1646429850531,0.46026,39306.0,39293.0,0.063654]
[1646429850733,0.32526,39306.0,39302.0,9.525e-05]
[1646429850957,0.16026,39303.0,39302.0,9.525e-05]
[1646429851135,0.4308655,39303.0,39302.0,9.525e-05]
[1646429851408,0.57078236,39303.0,39302.0,9.525e-05]
[1646429851756,0.57078236,39303.0,39301.0,0.003]
[1646429851939,0.16026,39302.0,39299.0,9.526e-05]
[1646429852138,0.02526,39302.0,39299.0,9.526e-05]
[1646429852338,0.13991686,39300.0,39299.0,9.526e-05]
[1646429852938,0.13991686,39300.0,39295.0,0.004]
[1646429853146,0.13991686,39300.0,39296.0,0.00010126]
[1646429853984,0.13991686,39300.0,39295.0,0.00212087]
[1646429854191,0.13991686,39299.0,39295.0,0.00212087]
[1646429854391,0.32526,39302.0,39295.0,0.00212087]
[1646429854691,0.2988686,39297.0,39295.0,0.00212087]
[1646429854988,0.16517686,39298.0,39295.0,0.00212087]
[1646429855789,0.135,39296.0,39295.0,0.00212087]
[1646429856091,0.16517686,39298.0,39295.0,0.00212087]
[1646429856491,0.16517686,39298.0,39295.0,0.06577087]
[1646429857389,0.16517686,39298.0,39295.0,0.00212087]
[1646429857594,0.25073082,39300.0,39295.0,0.00212087]
[1646429857595,0.16517686,39296.0,39295.0,0.00212087]
[1646429858642,0.16517686,39296.0,39293.0,0.00221734]
[1646429858935,0.13991686,39296.0,39293.0,0.00211607]
[1646429860545,0.13991686,39296.0,39293.0,0.12941107]
[1646429860743,0.13991686,39296.0,39293.0,0.22941107]
[1646429860944,0.13991686,39296.0,39293.0,0.10211607]
[1646429861985,0.13991686,39298.0,39294.0,0.063647]
[1646429862684,0.5367,39304.0,39294.0,0.063647]
[1646429862883,0.5367,39304.0,39293.0,0.10211607]
[1646429863089,0.44509213,39292.0,39290.0,0.10563656]
[1646429863290,0.44509213,39292.0,39290.0,0.1]
[1646429863585,0.44509213,39292.0,39291.0,0.063656]
[1646429863789,0.44509213,39292.0,39291.0,0.40948645]
[1646429864185,0.44509213,39292.0,39291.0,0.22730699]
[1646429865261,0.44509213,39292.0,39291.0,0.17730699]
[1646429866051,0.44509213,39292.0,39291.0,0.060173]
[1646429866257,0.44509213,39292.0,39289.0,0.15]
[1646429866446,0.44509213,39292.0,39289.0,0.2136571]
[1646429866642,0.44509213,39292.0,39290.0,0.005]
[1646429867543,0.44509213,39292.0,39290.0,0.068658]
[1646429867955,0.44509213,39292.0,39290.0,0.063658]
[1646429869045,0.44509213,39292.0,39290.0,0.25460762]
[1646429869180,0.44509213,39292.0,39290.0,0.35460762]
[1646429869593,0.44509213,39292.0,39290.0,0.43163947]
[1646429869982,0.44509213,39292.0,39290.0,0.29095762]
[1646429870383,0.44509213,39292.0,39290.0,0.35460762]
[1646429872384,0.44509213,39292.0,39290.0,0.29095762]
[1646429872590,0.44509213,39292.0,39290.0,0.163658]
[1646429872850,0.44509213,39292.0,39290.0,0.063658]
[1646429873377,0.44509213,39292.0,39291.0,0.16071924]
[1646429873638,0.44509213,39292.0,39291.0,0.408965]
[1646429873853,0.44509213,39292.0,39291.0,1.12093924]
[1646429873854,0.06329313,39292.0,39291.0,1.12093924]
[1646429874038,0.06329313,39292.0,39291.0,1.13480919]
[1646429874238,0.06329313,39292.0,39291.0,1.18480919]
[1646429874533,0.06329313,39292.0,39291.0,1.43366186]
[1646429875134,0.37661686,39304.0,39298.0,0.25306344]
[1646429875351,0.13991686,39304.0,39300.0,0.12726486]
[1646429875545,0.135,39301.0,39300.0,0.063633]
[1646429875734,0.135,39301.0,39300.0,0.163633]
[1646429876135,0.135,39301.0,39300.0,0.30512514]
[1646429877806,0.135,39301.0,39300.0,0.35182514]
[1646429878401,0.2481,39311.0,39301.0,1.05]
[1646429878601,0.2481,39311.0,39303.0,0.06363]
[1646429878836,0.14,39306.0,39304.0,0.0467]
[1646429878998,0.0001765,39312.0,39305.0,0.127249]
[1646429879205,0.2375,39316.0,39306.0,0.0467]
[1646429879419,0.14,39307.0,39306.0,0.0467]
[1646429880231,0.14,39307.0,39306.0,0.0967]
[1646429880634,0.14,39307.0,39306.0,0.0467]
[1646429881232,0.27991686,39307.0,39306.0,0.0467]
[1646429882632,0.14,39307.0,39306.0,0.0467]
[1646429882833,0.27991686,39307.0,39306.0,0.0467]
[1646429883205,0.27991686,39307.0,39306.0,0.0967]
[1646429883333,0.14,39307.0,39306.0,0.0467]
[1646429884394,0.27991686,39307.0,39306.0,0.0467]
[1646429884588,0.27991686,39307.0,39306.0,0.04733656]
[1646429884791,0.27991686,39307.0,39306.0,0.14733656]
[1646429884988,0.27991686,39307.0,39306.0,0.09733656]
[1646429885211,0.27991686,39307.0,39306.0,0.00063656]
[1646429890766,0.14,39307.0,39306.0,0.00063656]
[1646429891150,0.27991686,39307.0,39306.0,0.00063656]
[1646429891601,0.14,39307.0,39306.0,0.00063656]
[1646429891991,0.27991686,39307.0,39306.0,0.00063656]
[1646429892192,0.14,39307.0,39306.0,0.18770339]
[1646429892603,0.14,39307.0,39306.0,0.23770339]
[1646429893188,0.10502766,39305.0,39304.0,0.19087]
[1646429893394,0.24502766,39305.0,39304.0,0.95415]
[1646429893795,0.24502766,39305.0,39304.0,1.00085]
[1646429894053,0.24502766,39305.0,39304.0,1.0644624]
[1646429894590,0.24502766,39305.0,39304.0,1.23173286]
[1646429895234,0.24502766,39305.0,39304.0,1.43173286]
[1646429895836,0.24502766,39305.0,39304.0,1.44190086]
[1646429896036,0.24502766,39305.0,39304.0,1.43173286]
[1646429897848,0.69542597,39310.0,39306.0,0.27332664]
[1646429898055,0.14,39307.0,39306.0,0.27332664]
[1646429898239,0.0980488,39307.0,39306.0,0.47002664]
[1646429899491,0.0980488,39307.0,39306.0,0.49528664]
[1646429900397,0.69542597,39310.0,39308.0,0.063606]
[1646429900398,0.3363814,39310.0,39308.0,0.063606]
[1646429900600,0.14,39310.0,39308.0,0.28175112]
[1646429900796,0.13991686,39323.0,39310.0,1.41399999]
[1646429901005,0.70141686,39325.0,39321.0,0.15112477]
[1646429901194,0.70141686,39325.0,39322.0,0.0467]
[1646429901195,0.13991686,39325.0,39322.0,0.0467]
[1646429901507,0.13991686,39329.0,39323.0,0.06359]
[1646429901804,0.13991686,39329.0,39323.0,0.17371358]
[1646429902593,0.13991686,39329.0,39323.0,0.11012358]
[1646429902906,0.13991686,39325.0,39323.0,0.06012358]
[1646429903058,0.13991686,39325.0,39324.0,0.76289]
[1646429903245,0.13991686,39325.0,39324.0,0.85959]
[1646429903452,0.13991686,39325.0,39324.0,0.95959]
[1646429904544,0.28326241,39327.0,39324.0,0.95959]
[1646429904745,0.14009126,39326.0,39324.0,0.95959]
[1646429904945,0.14009126,39326.0,39324.0,0.85959]
[1646429905757,0.13991686,39326.0,39324.0,0.85959]
[1646429906152,0.13991686,39326.0,39325.0,0.12930064]
[1646429906390,0.13991686,39326.0,39325.0,0.0467]
[1646429908591,0.0001744,39327.0,39325.0,0.0467]
[1646429909091,0.0001744,39327.0,39326.0,0.15584953]
[1646429909292,0.13991686,39330.0,39326.0,0.25254953]
[1646429909714,0.00017565,39328.0,39326.0,0.25254953]
[1646429910092,0.00017565,39328.0,39326.0,0.0967]
[1646429910535,0.13991686,39330.0,39326.0,0.0967]
[1646429910752,0.00017565,39329.0,39326.0,0.0967]
[1646429910932,0.00017565,39329.0,39327.0,0.063594]
[1646429911134,0.00017565,39329.0,39328.0,0.0467]
[1646429911538,0.00017565,39329.0,39328.0,1.3467]
[1646429911845,0.36491686,39347.0,39329.0,1.4132972]
[1646429912053,0.36491686,39347.0,39339.0,0.28676611]
[1646429912235,0.13991686,39347.0,39340.0,0.0467]
[1646429912436,0.13991686,39347.0,39340.0,0.473829]
[1646429912653,0.8984297,39351.0,39340.0,0.573829]
[1646429912843,0.13991686,39351.0,39340.0,0.623829]
[1646429913240,0.00017454,39347.0,39345.0,0.14999851]
[1646429913439,0.00017454,39347.0,39346.0,1.10917]
[1646429913661,0.00017454,39347.0,39346.0,1.0404335]
[1646429913836,0.00017454,39347.0,39346.0,1.4904335]
[1646429914089,0.13991686,39356.0,39346.0,1.4904335]
[1646429918539,0.34209188,39358.0,39354.0,0.95901]
[1646429918739,0.34209188,39358.0,39354.0,0.85901]
[1646429918938,0.16517686,39355.0,39354.0,0.80901]
[1646429919139,0.13991686,39355.0,39354.0,0.80901]
[1646429920138,0.37984273,39355.0,39345.0,0.127121]
[1646429920341,0.08855956,39353.0,39345.0,0.127121]
[1646429920537,0.46060563,39350.0,39346.0,0.0467]
[1646429920939,0.32068877,39350.0,39346.0,0.0467]
[1646429921593,0.32088162,39350.0,39347.0,0.0467]
[1646429921789,0.32088162,39350.0,39348.0,0.0467]
[1646429921991,0.00019285,39350.0,39349.0,0.0467]
[1646429922586,0.13991686,39351.0,39349.0,0.0467]
[1646429922787,0.14010971,39351.0,39349.0,0.0467]
[1646429923188,0.14010971,39351.0,39346.0,0.05]
[1646429923387,0.14010971,39351.0,39348.0,0.12711757]
[1646429923588,0.14010971,39351.0,39349.0,0.0467]
[1646429923796,0.02499156,39353.0,39350.0,0.127104]
[1646429923993,0.02499156,39353.0,39351.0,0.3467]
[1646429924190,0.02499156,39353.0,39351.0,0.0467]
[1646429924389,0.02499156,39353.0,39352.0,0.14280838]
[1646429924589,0.02499156,39353.0,39352.0,0.80904]
[1646429925233,0.02499156,39353.0,39352.0,0.95904]
[1646429926831,0.02499156,39353.0,39352.0,1.14905751]
[1646429927033,0.02499156,39353.0,39352.0,1.10235751]
[1646429927733,0.02499156,39353.0,39352.0,1.10222551]
[1646429928635,0.02499156,39353.0,39352.0,1.10344558]
[1646429928838,0.02499156,39353.0,39352.0,1.15014558]
[1646429930089,0.01999156,39353.0,39352.0,1.45014558]
[1646429930691,0.01999156,39353.0,39352.0,1.40344558]
[1646429931291,0.01999156,39353.0,39352.0,1.45014558]
[1646429931890,0.01999156,39353.0,39352.0,1.32368007]
[1646429932091,0.01999156,39353.0,39352.0,1.02368007]
[1646429932092,0.00999156,39353.0,39352.0,1.02368007]
[1646429932941,0.00999156,39353.0,39352.0,1.17914672]
[1646429933139,0.00999156,39353.0,39352.0,1.02368007]
[1646429933341,0.00999156,39353.0,39352.0,0.97698007]
[1646429933541,0.00999156,39353.0,39352.0,0.81342807]
[1646429933742,0.14990842,39353.0,39352.0,0.81342807]
[1646429934344,0.00999156,39353.0,39352.0,0.81342807]
[1646429935341,0.00999156,39353.0,39352.0,0.86012807]
[1646429935542,0.00999156,39353.0,39352.0,1.22368007]
[1646429935743,0.00999156,39353.0,39352.0,0.92368007]
[1646429936143,0.00999156,39353.0,39352.0,1.22368007]
[1646429936342,0.00999156,39353.0,39352.0,1.32368007]
[1646429938394,0.00999156,39353.0,39352.0,1.32268007]
[1646429938592,0.00999156,39353.0,39352.0,1.33194234]
[1646429938992,0.00999156,39353.0,39352.0,1.32268007]
[1646429944089,0.61081894,39364.0,39352.0,1.32268007]
[1646429944090,0.13991686,39363.0,39353.0,1.2]
[1646429944291,0.13991686,39363.0,39356.0,0.063543]
[1646429944488,0.13991686,39363.0,39357.0,0.3467]
[1646429944691,0.13991686,39363.0,39357.0,0.3967]
[1646429944888,0.13991686,39363.0,39360.0,0.23688363]
[1646429945086,0.13991686,39363.0,39361.0,0.0467]